fUSD/lending_fUSD_20240720
["ID","MTS","AMOUNT","RATE_DAILY","PERIOD"]
[332711176,1721473849961,-164.812469,0.00025715,2]
[332711177,1721473849972,-176.000256,0.00025715,2]
[332711178,1721473849984,-185.533071,0.00025715,2]
[332711179,1721473849995,-268.18346826,0.00025733,2]
[332711180,1721473850008,-157.04839581,0.00025759,2]
[332711181,1721473850020,-208.09564501,0.00025799,2]
[332711182,1721473850033,-160.1523064,0.00025824,2]
[332711183,1721473850044,-155.77596432,0.0002583,2]
[332711184,1721473850057,-307.2103873,0.00025881,2]
[332711185,1721473850069,-160.41987536,0.00025885,2]
[332711186,1721473850080,-152.76019491,0.000259,2]
[332711187,1721473850091,-152.76019455,0.000259,2]
[332711188,1721473850103,-152.76019455,0.000259,2]
[332711189,1721473850115,-152.76019455,0.000259,2]
[332711190,1721473850126,-152.76019455,0.000259,2]
[332711191,1721473850137,-152.76019455,0.000259,2]
[332711192,1721473850149,-152.76019455,0.000259,2]
[332711193,1721473850160,-152.76019455,0.000259,2]
[332711194,1721473850171,-152.76019455,0.000259,2]
[332711195,1721473850183,-152.76019455,0.000259,2]
[332711196,1721473850194,-152.76019455,0.000259,2]
[332711197,1721473850205,-152.76019455,0.000259,2]
[332711198,1721473850217,-152.76019455,0.000259,2]
[332711199,1721473850228,-152.76019455,0.000259,2]
[332711200,1721473850239,-152.76019455,0.000259,2]
[332711201,1721473850252,-152.76019455,0.000259,2]
[332711202,1721473850263,-152.76019455,0.000259,2]
[332711203,1721473850275,-152.76019455,0.000259,2]
[332711204,1721473850285,-152.76019455,0.000259,2]
[332711205,1721473850297,-152.76019455,0.000259,2]
[332711206,1721473850308,-152.76019455,0.000259,2]
[332711207,1721473850319,-152.76019455,0.000259,2]
[332711208,1721473850331,-152.76019455,0.000259,2]
[332711209,1721473850342,-152.76019455,0.000259,2]
[332711210,1721473850354,-152.76019455,0.000259,2]
[332711211,1721473850364,-2402.6,0.000259,2]
[332711212,1721473850373,-482.56639442,0.00025936,2]
[332711213,1721473850792,-207.0,0.0002597,2]
[332711214,1721473850815,-151.0,0.00025973,2]
[332711215,1721473850837,-158.26797403,0.00026,2]
[332711216,1721473850859,-166.66666668,0.00026006,2]
[332711217,1721473850868,-152.76019455,0.0002603,2]
[332711218,1721473850877,-590.200919,0.00026037,2]
[332711219,1721473850887,-323.356822,0.00026037,2]
[332711220,1721473850896,-177.063916,0.00026037,2]
[332711221,1721473850906,-1499.794731,0.00026037,2]
[332711222,1721473850915,-1346.895254,0.00026037,2]
[332711223,1721473850925,-880.776708,0.00026037,2]
[332711224,1721473850934,-4200.910736,0.00026037,2]
[332711225,1721473850943,-2349.615138,0.00026037,2]
[332711226,1721473850952,-3647.734,0.00026037,2]
[332711227,1721473850962,-194.451237,0.00026037,2]
[332711228,1721473850971,-731.342158,0.00026037,2]
[332711229,1721473850980,-885.682502,0.00026037,2]
[332711230,1721473850990,-1156.785028,0.00026037,2]
[332711231,1721473850999,-482.7,0.000261,7]
[332711232,1721473851008,-173.369213,0.00026165,2]
[332711233,1721473851017,-369.0,0.00026169,2]
[332711234,1721473851027,-157.47540582,0.00026243,2]
[332711235,1721473851036,-307.2103873,0.00026269,2]
[332711236,1721473851045,-268.18346826,0.00026281,2]
[332711237,1721473851054,-600.0,0.00026301,2]
[332711238,1721473851063,-80678.27,0.00026301,2]
[332711239,1721473851072,-161.28,0.00026301,2]
[332711240,1721473851081,-151.23259794,0.00026311,2]
[332711241,1721473851091,-4634.25630754,0.00026341,7]
[332711242,1721473851100,-188.572167,0.00026358,2]
[332711243,1721473851110,-180.746967,0.00026358,2]
[332711244,1721473851119,-590.200919,0.00026358,2]
[332711245,1721473851128,-323.356822,0.00026358,2]
[332711246,1721473851140,-177.063916,0.00026358,2]
[332711247,1721473851149,-1499.794731,0.00026358,2]
[332711248,1721473851159,-1346.895254,0.00026358,2]
[332711249,1721473851169,-880.776708,0.00026358,2]
[332711250,1721473851178,-4200.910736,0.00026358,2]
[332711251,1721473851187,-2349.615138,0.00026358,2]
[332711252,1721473851197,-3647.734,0.00026358,2]
[332711253,1721473851205,-194.451237,0.00026358,2]
[332711254,1721473851215,-731.342158,0.00026358,2]
[332711255,1721473851225,-885.682502,0.00026358,2]
[332711256,1721473851235,-1156.785028,0.00026358,2]
[332711257,1721473851246,-482.56639442,0.00026372,2]
[332711258,1721473851256,-25968.83393409,0.000264,2]
[332711259,1721473851266,-482.56639442,0.00026411,2]
[332711260,1721473851275,-268.18346826,0.00026436,2]
[332711261,1721473851284,-208.09564501,0.0002647,2]
[332711262,1721473851293,-152.76019455,0.00026475,2]
[332711263,1721473851302,-156.71,0.00026484,2]
[332711264,1721473851312,-208.09564501,0.0002649,2]
[332711265,1721473851321,-800.0,0.00026544,2]
[332711266,1721473851330,-268.18346826,0.00026551,2]
[332711267,1721473851339,-317.92264736,0.00026669,2]
[332711268,1721473851349,-590.200919,0.00026679,2]
[332711269,1721473851359,-323.356822,0.00026679,2]
[332711270,1721473851368,-177.063916,0.00026679,2]
[332711271,1721473851377,-1499.794731,0.00026679,2]
[332711272,1721473851386,-1346.895254,0.00026679,2]
[332711273,1721473851395,-880.776708,0.00026679,2]
[332711274,1721473851405,-4200.910736,0.00026679,2]
[332711275,1721473851415,-2349.615138,0.00026679,2]
[332711276,1721473851424,-3647.734,0.00026679,2]
[332711277,1721473851433,-194.451237,0.00026679,2]
[332711278,1721473851443,-731.342158,0.00026679,2]
[332711279,1721473851452,-885.682502,0.00026679,2]
[332711280,1721473851461,-1156.785028,0.00026679,2]
[332711281,1721473851471,-268.18346826,0.00026746,2]
[332711282,1721473851480,-155.0,0.0002679,2]
[332711283,1721473851489,-985.0,0.000268,10]
[332711284,1721473851498,-173.369213,0.00026803,2]
[332711285,1721473851508,-150.712665,0.00026803,2]
[332711286,1721473851518,-172.128328,0.00026803,2]
[332711287,1721473851527,-152.76019455,0.0002692,2]
[332711288,1721473851536,-525.07394389,0.00026967,2]
[332711289,1721473851546,-220.93624599,0.00027,2]
[332711290,1721473851555,-11087.12996633,0.00027,2]
[332711291,1721473851564,-3675.471783,0.00027,2]
[332711292,1721473851574,-450.0,0.00027,2]
[332711293,1721473851582,-180.746967,0.00027001,2]
[332711294,1721473851591,-178.462415,0.00027001,2]
[332711295,1721473851601,-178.462414,0.00027001,2]
[332711296,1721473851611,-176.000256,0.00027001,2]
[332711297,1721473851620,-185.533071,0.00027001,2]
[332711298,1721473851629,-188.572167,0.00027001,2]
[332711299,1721473851639,-180.746967,0.00027001,2]
[332711300,1721473851649,-590.200919,0.00027001,2]
[332711301,1721473851658,-323.356822,0.00027001,2]
[332711302,1721473851668,-177.063916,0.00027001,2]
[332711303,1721473851677,-1499.794731,0.00027001,2]
[332711304,1721473851687,-1346.895254,0.00027001,2]
[332711305,1721473851696,-880.776708,0.00027001,2]
[332711306,1721473851706,-2349.615138,0.00027001,2]
[332711307,1721473851715,-4200.910736,0.00027001,2]
[332711308,1721473851724,-3647.734,0.00027001,2]
[332711309,1721473851734,-194.451237,0.00027001,2]
[332711310,1721473851743,-731.342158,0.00027001,2]
[332711311,1721473851755,-885.682502,0.00027001,2]
[332711312,1721473851764,-1156.785028,0.00027001,2]
[332711313,1721473851773,-208.09564501,0.00027011,2]
[332711314,1721473851782,-482.56639442,0.0002703,2]
[332711315,1721473851791,-207.0,0.0002704,2]
[332711316,1721473851800,-2402.6,0.000271,2]
[332711317,1721473851809,-600.0,0.00027123,2]
[332711318,1721473851818,-3467.28,0.00027123,2]
[332711319,1721473851828,-155.77596432,0.00027158,2]
[332711320,1721473851837,-154.71957346,0.00027174,2]
[332711321,1721473851846,-482.7,0.000272,7]
[332711322,1721473851856,-770.36,0.00027206,2]
[332711323,1721473851866,-151.23259794,0.00027282,2]
[332711324,1721473851876,-155.77596432,0.00027318,2]
[332711325,1721473851885,-152.76019455,0.00027365,2]
[332711326,1721473851894,-453.0,0.00027384,2]
[332711327,1721473851904,-156.71,0.00027397,2]
[332711328,1721473851913,-34149.48,0.00027397,2]
[332711329,1721473851923,-482.56639442,0.00027431,2]
[332711330,1721473851932,-307.2103873,0.0002749,2]
[332711331,1721473851942,-307.2103873,0.00027508,2]
[332711332,1721473851952,-307.2103873,0.00027526,2]
[332711333,1721473851961,-157.02536159,0.00027549,2]
[332711334,1721473851971,-268.18346826,0.0002756,2]
[332711335,1721473851980,-162.0,0.00027566,2]
[332711336,1721473851990,-268.18346826,0.00027597,2]
[332711337,1721473851999,-151.38206091,0.0002763,2]
[332711338,1721473852009,-157.04839581,0.00027687,2]
[332711339,1721473852018,-235.55,0.00027714,2]
[332711340,1721473852027,-307.2103873,0.00027722,2]
[332711341,1721473852037,-152.76019455,0.00027811,2]
[332711342,1721473852046,-482.56639442,0.00027824,2]
[332711343,1721473852056,-300.0,0.000279,10]
[332711344,1721473852065,-600.0,0.00027945,2]
[332711345,1721473852074,-157.04839581,0.00027957,2]
[332711346,1721473852083,-153.22661118,0.00027962,2]
[332711347,1721473852092,-317.92264736,0.00027977,2]
[332711348,1721473852101,-366.61352416,0.00027999,2]
[332711349,1721473852112,-372.20108759,0.00028,2]
[332711350,1721473852121,-1000.0,0.00028,15]
[332711351,1721473852131,-14915.65351774,0.00028,2]
[332711352,1721473852141,-23903.57833021,0.00028,2]
[332711353,1721473852150,-478.07156661,0.00028,2]
[332711354,1721473852160,-151.23259794,0.00028046,2]
[332711355,1721473852170,-151.02,0.00028052,2]
[332711356,1721473852179,-208.09564501,0.00028053,2]
[332711357,1721473852189,-207.0,0.0002811,2]
[332711358,1721473852199,-612.21,0.00028131,2]
[332711359,1721473852209,-435.43,0.00028135,2]
[332711360,1721473852218,-1000.0,0.00028135,2]
[332711361,1721473852229,-482.56639442,0.00028145,2]
[332711362,1721473852239,-1557.25,0.00028196,2]
[332711363,1721473852248,-16878.79,0.00028203,2]
[332711364,1721473852259,-5700.97,0.00028203,2]
[332711365,1721473852269,-268.18346826,0.00028239,2]
[332711366,1721473852278,-153.22661118,0.00028249,2]
[332711367,1721473852288,-2412.98,0.00028255,2]
[332711368,1721473852297,-152.76019455,0.00028256,2]
[332711369,1721473852307,-482.7,0.000283,14]
[332711370,1721473852317,-2402.6,0.000283,2]
[332711371,1721473852326,-156.71,0.0002831,2]
[332711372,1721473852336,-453.18902206,0.00028416,2]
[332711373,1721473852346,-1072.74,0.00028443,2]
[332711374,1721473852356,-268.18346826,0.00028452,2]
[332711375,1721473852366,-208.09564501,0.00028456,2]
[332711376,1721473852376,-176.81,0.00028493,2]
[332711377,1721473852385,-161.28,0.00028493,2]
[332711378,1721473852395,-268.18346826,0.00028496,2]
[332711379,1721473852404,-555.25,0.00028537,2]
[332711380,1721473852414,-208.09564501,0.00028551,2]
[332711381,1721473852423,-2943.88,0.00028558,2]
[332711382,1721473852433,-157.47540582,0.00028571,2]
[332711383,1721473852442,-558.0,0.00028655,2]
[332711384,1721473852452,-1000.0,0.00028655,2]
[332711385,1721473852462,-268.18346826,0.00028691,2]
[332711386,1721473852472,-152.76019455,0.00028701,2]
[332711387,1721473852482,-482.56639442,0.00028709,2]
[332711388,1721473852493,-153.22661118,0.00028711,2]
[332711389,1721473852503,-155.41,0.0002874,2]
[332711390,1721473852512,-600.0,0.00028767,2]
[332711391,1721473852522,-1000000.0,0.000288,7]
[332711392,1721473852532,-307.2103873,0.000288,2]
[332711393,1721473852543,-165.92612166,0.00028823,2]
[332711394,1721473852552,-153.22661118,0.00028888,2]
[332711395,1721473852564,-153.22661118,0.00028891,2]
[332711396,1721473852573,-151.49,0.000289,2]
[332711397,1721473852583,-1796.66,0.00028931,2]
[332711398,1721473852592,-1899.96,0.00028998,2]
[332711399,1721473852602,-54360.90403139,0.00029,2]
[332711400,1721473852611,-4176.14045734,0.00029,2]
[332711401,1721473852620,-5000.0,0.00029,2]
[332711402,1721473852630,-3000.0,0.00029,2]
[332711403,1721473852640,-500.0,0.00029,2]
[332711404,1721473852649,-152.76019455,0.00029146,2]
[332711405,1721473852659,-207.0,0.0002918,2]
[332711406,1721473852669,-156.71,0.00029224,2]
[332711407,1721473852678,-208.09564501,0.00029225,2]
[332711408,1721473852687,-482.56639442,0.00029241,2]
[332711409,1721473852696,-153.22661118,0.00029267,2]
[332711410,1721473852705,-317.92264736,0.00029285,2]
[332711411,1721473852715,-153.22661118,0.0002929,2]
[332711412,1721473852725,-208.09564501,0.00029332,2]
[332711413,1721473852734,-152.17197329,0.00029355,2]
[332711414,1721473852744,-482.56639442,0.00029382,2]
[332711415,1721473852753,-10577.97329436,0.000294,2]
[332711416,1721473852763,-208.09564501,0.00029418,2]
[332711417,1721473852773,-152.17197329,0.00029431,2]
[332711418,1721473852782,-268.18346826,0.0002946,2]
[332711419,1721473852791,-770.36,0.0002947,2]
[332711420,1721473852801,-208.09564501,0.000295,2]
[332711421,1721473852811,-165.83358507,0.000295,2]
[332711422,1721473852820,-482.7,0.000295,14]
[332711423,1721473852832,-153.22661118,0.00029549,2]
[332711424,1721473852842,-307.2103873,0.00029551,2]
[332711425,1721473852852,-154.71957346,0.00029566,2]
[332711426,1721473852862,-600.0,0.00029589,2]
[332711427,1721473852871,-152.76019455,0.00029591,2]
[332711428,1721473852881,-2402.6,0.000296,2]
[332711429,1721473852890,-208.09564501,0.00029624,2]
[332711430,1721473852899,-208.09564501,0.00029657,2]
[332711431,1721473852909,-165.09028158,0.00029722,2]
[332711432,1721473852918,-160.41987536,0.00029727,2]
[332711433,1721473852927,-157.04839581,0.00029734,2]
[332711434,1721473852936,-154.98095525,0.0002975,2]
[332711435,1721473852946,-151.42828932,0.00029761,2]
[332711436,1721473852955,-482.56639442,0.00029796,2]
[332711437,1721473852966,-157.47540582,0.0002983,2]
[332711438,1721473852975,-157.47540585,0.00029832,2]
[332711439,1721473852984,-208.09564501,0.00029836,2]
[332711440,1721473852994,-151.94,0.00029883,2]
[332711441,1721473853003,-73358.25725396,0.000299,2]
[332711442,1721473853013,-686.0,0.00029985,2]
[332711443,1721473853022,-1496.4168,0.0003,8]
[332711444,1721473853031,-155.0,0.0003,4]
[332711445,1721473853041,-10609.71436494,0.0003,2]
[332711446,1721473853050,-15253.95307728,0.0003,2]
[332711447,1721473853059,-38920.62257758,0.0003,2]
[332711448,1721473853068,-379.57,0.0003,21]
[332711449,1721473853077,-1000.0,0.0003,22]
[332711450,1721473853087,-3200.0,0.0003,2]
[332711451,1721473853096,-219.0,0.0003,2]
[332711452,1721473853106,-693.91437242,0.0003,4]
[332711453,1721473853115,-233.62772987,0.0003,4]
[332711454,1721473853125,-1074.1873187,0.0003,2]
[332711455,1721473853134,-268.18346826,0.00030028,7]
[332711456,1721473853144,-152.76019455,0.00030036,2]
[332711457,1721473853153,-152.17197329,0.00030092,7]
[332711458,1721473853163,-2817.70747476,0.000301,2]
[332711459,1721473853173,-1447.0,0.000301,2]
[332711460,1721473853182,-250.8988621,0.000301,2]
[332711461,1721473853192,-1001.0,0.000301,2]
[332711462,1721473853201,-6309.0,0.000301,30]
[332711463,1721473853210,-310.0,0.00030136,2]
[332711464,1721473853220,-156.71,0.00030137,2]
[332711465,1721473853229,-164.19,0.0003019,2]
[332711466,1721473853239,-300.42,0.0003019,2]
[332711467,1721473853248,-294.11,0.0003019,2]
[332711468,1721473853258,-307.2103873,0.00030196,7]
[332711469,1721473853268,-207.0,0.0003025,2]
[332711470,1721473853278,-155.77596432,0.00030258,7]
[332711471,1721473853287,-307.2103873,0.00030265,7]
[332711472,1721473853297,-155.77596432,0.00030328,7]
[332711473,1721473853306,-307.2103873,0.00030334,7]
[332711474,1721473853315,-151.23259794,0.00030388,7]
[332711475,1721473853325,-151.0,0.0003041,7]
[332711476,1721473853335,-600.0,0.0003041,2]
[332711477,1721473853345,-152.76019455,0.00030482,2]
[332711478,1721473853356,-208.09564501,0.0003052,7]
[332711479,1721473853367,-157.04839581,0.00030528,7]
[332711480,1721473853377,-154.98095525,0.00030531,7]
[332711481,1721473853387,-268.18346826,0.00030534,7]
[332711482,1721473853396,-482.56639442,0.00030535,7]
[332711483,1721473853406,-317.92264736,0.00030592,2]
[332711484,1721473853416,-482.7,0.000306,14]
[332711485,1721473853426,-307.2103873,0.0003061,7]
[332711486,1721473853435,-307.2103873,0.00030634,7]
[332711487,1721473853445,-161.28,0.00030685,2]
[332711488,1721473853454,-154.82715635,0.00030726,7]
[332711489,1721473853464,-160.41987536,0.0003073,7]
[332711490,1721473853473,-2402.6,0.000308,2]
[332711491,1721473853483,-160.41987536,0.00030813,7]
[332711492,1721473853493,-268.18346826,0.00030844,7]
[332711493,1721473853503,-151.42828932,0.00030847,7]
[332711494,1721473853512,-307.2103873,0.0003085,7]
[332711495,1721473853523,-307.2103873,0.00030851,7]
[332711496,1721473853533,-268.18346826,0.00030869,7]
[332711497,1721473853543,-1200.0,0.00030875,2]
[332711498,1721473853554,-74318.97520096,0.000309,2]
[332711499,1721473853563,-268.18346826,0.00030924,7]
[332711500,1721473853573,-152.76019455,0.00030927,2]
[332711501,1721473853583,-307.2103873,0.0003095,7]
[332711502,1721473853593,-153.22661118,0.0003096,7]
[332711503,1721473853602,-604221.58194379,0.00030978,2]
[332711504,1721473853613,-355.48873078,0.00031,5]
[332711505,1721473853622,-9392.15011446,0.00031,2]
[332711506,1721473853631,-550.0,0.00031,2]
[332711507,1721473853641,-156.71,0.0003105,2]
[332711508,1721473853808,-307.2103873,0.00031071,7]
[332711509,1721473853851,-298.69140203,0.00031104,7]
[332711510,1721473853863,-150.0,0.00031104,7]
[332711511,1721473853874,-251.83057447,0.00031104,7]
[332711512,1721473853884,-150.0,0.00031104,7]
[332711513,1721473853894,-150.0,0.00031104,7]
[332711514,1721473853904,-150.0,0.00031104,7]
[332711515,1721473853915,-150.0,0.00031104,7]
[332711516,1721473853925,-150.07727061,0.00031104,7]
[332711517,1721473853935,-150.0,0.00031104,7]
[332711518,1721473853945,-150.0,0.00031104,7]
[332711519,1721473853955,-150.0,0.00031104,7]
[332711520,1721473853965,-150.0,0.00031104,7]
[332711521,1721473853974,-150.05826877,0.00031104,7]
[332711522,1721473853985,-150.0,0.00031104,7]
[332711523,1721473853995,-150.0,0.00031104,7]
[332711524,1721473854005,-482.56639442,0.00031134,7]
[332711525,1721473854015,-251.83057447,0.00031139,7]
[332711526,1721473854025,-150.0,0.00031153,7]
[332711527,1721473854034,-157.04839581,0.00031163,7]
[332711528,1721473854044,-150.0,0.00031168,7]
[332711529,1721473854054,-251.83057447,0.00031174,7]
[332711530,1721473854064,-500.0,0.00031185,2]
[332711531,1721473854074,-500.0,0.00031185,2]
[332711532,1721473854084,-627.0,0.00031185,2]
[332711533,1721473854094,-150.0,0.00031201,7]
[332711534,1721473854104,-251.83057447,0.00031209,7]
[332711535,1721473854114,-153.22661118,0.00031213,7]
[332711536,1721473854123,-150.0,0.00031232,7]
[332711537,1721473854133,-600.0,0.00031232,2]
[332711538,1721473854143,-160.1523064,0.00031238,7]
[332711539,1721473854153,-251.83057447,0.00031244,7]
[332711540,1721473854162,-150.0,0.0003125,7]
[332711541,1721473854172,-6300.0,0.00031262,8]
[332711542,1721473854182,-251.83057447,0.00031279,7]
[332711543,1721473854192,-150.0,0.00031296,7]
[332711544,1721473854201,-150.0,0.00031299,7]
[332711545,1721473854211,-150.0,0.00031307,7]
[332711546,1721473854221,-251.83057447,0.00031313,7]
[332711547,1721473854231,-207.0,0.0003132,2]
[332711548,1721473854241,-150.0,0.0003132,7]
[332711549,1721473854251,-150.0,0.00031347,7]
[332711550,1721473854260,-251.83057447,0.00031348,7]
[332711551,1721473854270,-150.0,0.0003136,7]
[332711552,1721473854280,-157.04839581,0.00031369,7]
[332711553,1721473854291,-152.76019455,0.00031372,2]
[332711554,1721473854301,-844.0,0.00031377,3]
[332711555,1721473854311,-251.83057447,0.00031383,7]
[332711556,1721473854322,-150.0,0.00031392,7]
[332711557,1721473854332,-150.0,0.00031396,7]
[332711558,1721473854342,-251.83057447,0.00031418,7]
[332711559,1721473854352,-150.0,0.00031424,7]
[332711560,1721473854362,-150.0,0.00031445,7]
[332711561,1721473854374,-251.83057447,0.00031453,7]
[332711562,1721473854385,-251.83057447,0.00031488,7]
[332711563,1721473854397,-150.0,0.00031488,7]
[332711564,1721473854407,-150.0,0.00031493,7]
[332711565,1721473854416,-150.0,0.00031511,7]
[332711566,1721473854426,-251.83057447,0.00031523,7]
[332711567,1721473854436,-150.0,0.00031536,7]
[332711568,1721473854446,-150.0,0.00031542,7]
[332711569,1721473854456,-208.09564501,0.00031543,7]
[332711570,1721473854465,-150.0,0.00031552,7]
[332711571,1721473854476,-251.83057447,0.00031558,7]
[332711572,1721473854486,-150.0,0.00031564,2]
[332711573,1721473854496,-150.0,0.00031591,7]
[332711574,1721473854506,-251.83057447,0.00031593,7]
[332711575,1721473854516,-150.0,0.00031616,7]
[332711576,1721473854526,-251.83057447,0.00031628,7]
[332711577,1721473854536,-150.0,0.00031639,7]
[332711578,1721473854546,-251.83057447,0.00031663,7]
[332711579,1721473854556,-157.04839581,0.00031664,7]
[332711580,1721473854566,-150.0,0.0003168,7]
[332711581,1721473854576,-150.0,0.0003168,7]
[332711582,1721473854586,-150.0,0.00031688,7]
[332711583,1721473854596,-251.83057447,0.00031697,7]
[332711584,1721473854605,-482.7,0.000317,14]
[332711585,1721473854616,-150.0,0.00031714,7]
[332711586,1721473854626,-251.83057447,0.00031732,7]
[332711587,1721473854637,-770.36,0.00031733,2]
[332711588,1721473854647,-150.0,0.00031737,7]
[332711589,1721473854656,-150.0,0.00031744,7]
[332711590,1721473854666,-150.0,0.00031752,7]
[332711591,1721473854676,-251.83057447,0.00031767,7]
[332711592,1721473854686,-150.0,0.00031785,7]
[332711593,1721473854697,-251.83057447,0.00031802,7]
[332711594,1721473854706,-155.99187692,0.00031805,7]
[332711595,1721473854716,-150.0,0.00031808,7]
[332711596,1721473854726,-152.76019455,0.00031817,2]
[332711597,1721473854736,-150.0,0.00031834,7]
[332711598,1721473854745,-251.83057447,0.00031837,7]
[332711599,1721473854758,-268.18346826,0.00031861,7]
[332711600,1721473854768,-155.77596432,0.00031863,7]
[332711601,1721473854778,-251.83057447,0.00031872,7]
[332711602,1721473854788,-150.0,0.00031872,7]
[332711603,1721473854798,-150.0,0.00031883,7]
[332711604,1721473854807,-317.92264736,0.000319,2]
[332711605,1721473854817,-251.83057447,0.00031907,7]
[332711606,1721473854826,-150.0,0.00031917,7]
[332711607,1721473854836,-150.0,0.00031931,7]
[332711608,1721473854846,-150.0,0.00031936,7]
[332711609,1721473854856,-251.83057447,0.00031942,7]
[332711610,1721473854866,-156.71,0.00031963,2]
[332711611,1721473854876,-150.0,0.00031968,7]
[332711612,1721473854886,-150.0,0.00031968,7]
[332711613,1721473854896,-251.83057447,0.00031977,7]
[332711614,1721473854906,-208.09564501,0.00031979,7]
[332711615,1721473854916,-150.0,0.0003198,7]
[332711616,1721473854926,-159.84265842,0.00032,10]
[332711617,1721473854936,-51732.89952432,0.00032,14]
[332711618,1721473854946,-4634030.94,0.00032,10]
[332711619,1721473854956,-1000.0,0.00032,24]
[332711620,1721473854967,-151.0,0.00032,7]
[332711621,1721473854977,-150.0,0.00032,7]
[332711622,1721473854987,-151.0,0.00032,7]
[332711623,1721473854996,-10000.0,0.00032,7]
[332711624,1721473855006,-10000.0,0.00032,7]
[332711625,1721473855015,-151.0,0.00032,7]
[332711626,1721473855025,-2402.6,0.00032,2]
[332711627,1721473855035,-251.83057447,0.00032012,7]
[332711628,1721473855045,-208.09564501,0.00032018,7]
[332711629,1721473855056,-268.18346826,0.00032027,7]
[332711630,1721473855066,-150.0,0.00032029,7]
[332711631,1721473855075,-251.83057447,0.00032047,7]
[332711632,1721473855085,-600.0,0.00032054,2]
[332711633,1721473855095,-150.0,0.00032064,7]
[332711634,1721473855105,-150.0,0.00032078,7]
[332711635,1721473855115,-251.83057447,0.00032081,7]
[332711636,1721473855124,-251.83057447,0.00032116,7]
[332711637,1721473855134,-150.0,0.0003212,7]
[332711638,1721473855143,-150.0,0.00032126,7]
[332711639,1721473855153,-150.0,0.00032128,7]
[332711640,1721473855163,-251.83057447,0.00032151,7]
[332711641,1721473855173,-150.0,0.00032175,7]
[332711642,1721473855183,-150.0,0.00032184,7]
[332711643,1721473855192,-251.83057447,0.00032186,7]
[332711644,1721473855202,-150.0,0.00032192,7]
[332711645,1721473855212,-307.2103873,0.00032215,7]
[332711646,1721473855221,-251.83057447,0.00032221,7]
[332711647,1721473855231,-150.0,0.00032224,7]
[332711648,1721473855241,-251.83057447,0.00032256,7]
[332711649,1721473855251,-150.0,0.00032256,7]
[332711650,1721473855260,-150.0,0.00032256,7]
[332711651,1721473855270,-307.2103873,0.0003226,7]
[332711652,1721473855280,-152.76019455,0.00032262,2]
[332711653,1721473855290,-268.18346826,0.00032268,7]
[332711654,1721473855300,-150.0,0.00032272,7]
[332711655,1721473855310,-307.2103873,0.00032282,7]
[332711656,1721473855320,-155.99187692,0.00032284,7]
[332711657,1721473855330,-251.83057447,0.00032291,7]
[332711658,1721473855340,-150.0,0.0003232,7]
[332711659,1721473855350,-150.0,0.00032321,7]
[332711660,1721473855360,-150.0,0.00032324,7]
[332711661,1721473855371,-251.83057447,0.00032326,7]
[332711662,1721473855381,-482.56639442,0.00032344,7]
[332711663,1721473855391,-251.83057447,0.00032361,7]
[332711664,1721473855401,-150.0,0.0003237,7]
[332711665,1721473855411,-307.2103873,0.00032375,7]
[332711666,1721473855421,-253.0,0.0003238,2]
[332711667,1721473855430,-207.0,0.0003238,2]
[332711668,1721473855440,-150.0,0.00032384,7]
[332711669,1721473855450,-251.83057447,0.00032396,7]
[332711670,1721473855459,-150.0,0.000324,7]
[332711671,1721473855469,-150.0,0.00032418,7]
[332711672,1721473855479,-152.17197329,0.0003243,7]
[332711673,1721473855488,-251.83057447,0.00032431,7]
[332711674,1721473855498,-150.0,0.00032448,7]
[332711675,1721473855508,-251.83057447,0.00032465,7]